bitfinex-derivatives/quotes_BTCF0:USTF0_20210404
["timestamp","ask_amount","ask_price","bid_price","bid_amount"]
[1617505224450,3.24709,57280.0,57279.0,0.10725655]
[1617505229759,0.13819,57280.0,57279.0,0.10725655]
[1617505229960,0.10725655,57284.0,57279.0,2.89525655]
[1617505231162,0.10725655,57284.0,57279.0,0.10725655]
[1617505231361,2.5408,57280.0,57279.0,0.10725655]
[1617505231564,2.5408,57280.0,57254.0,2.17567763]
[1617505231565,2.65954,57280.0,57264.0,1.0]
[1617505231764,2.65954,57280.0,57261.0,1.0]
[1617505232164,2.65954,57280.0,57260.0,1.0]
[1617505232364,2.65954,57280.0,57256.0,1.0]
[1617505232765,0.11874,57280.0,57256.0,1.0]
[1617505232966,0.11874,57280.0,57267.0,0.10725655]
[1617505233166,3.1051,57268.0,57267.0,0.10725655]
[1617505233367,3.24596,57268.0,57267.0,0.10725655]
[1617505233767,0.14086,57268.0,57267.0,0.10725655]
[1617505234368,2.73716,57268.0,57267.0,0.10725655]
[1617505235069,0.24811655,57268.0,57267.0,0.10725655]
[1617505237971,0.24811655,57268.0,57254.0,0.4711]
[1617505238587,3.5692,57256.0,57254.0,0.4711]
[1617505238777,3.73475,57256.0,57254.0,0.4711]
[1617505238974,0.27280655,57256.0,57255.0,0.10725655]
[1617505239572,3.70155,57256.0,57255.0,0.10725655]
[1617505240177,0.16555,57256.0,57255.0,0.10725655]
[1617505240977,0.10725655,57262.0,57255.0,0.10725655]
[1617505243178,0.10725655,57262.0,57261.0,0.10725655]
[1617505245279,3.4284,57263.0,57261.0,0.10725655]
[1617505254789,3.4284,57263.0,57241.0,3.734]
[1617505254988,3.56235,57263.0,57241.0,3.734]
[1617505255189,3.56235,57263.0,57259.0,0.10725655]
[1617505257189,0.10725655,57260.0,57259.0,0.10725655]
[1617505257789,0.10725655,57260.0,57241.0,3.734]
[1617505259090,3.56235,57263.0,57259.0,0.10725655]
[1617505261093,0.10725655,57260.0,57259.0,0.10725655]
[1617505265494,3.34535655,57260.0,57259.0,0.10725655]
[1617505267296,3.34535655,57260.0,57242.0,2.5]
[1617505268294,3.34535655,57260.0,57242.0,1.5]
[1617505268495,3.34535655,57260.0,57242.0,1.0]
[1617505269196,3.2381,57260.0,57253.0,0.10725655]
[1617505270197,3.2381,57260.0,57253.0,1.10725655]
[1617505270398,3.2381,57260.0,57253.0,0.10725655]
[1617505271299,0.10725655,57254.0,57253.0,0.10725655]
[1617505276507,0.23725655,57254.0,57253.0,0.10725655]
[1617505279812,2.76205655,57254.0,57253.0,0.10725655]
[1617505291125,2.76205655,57254.0,57253.0,0.22419655]
[1617505291525,0.23725655,57254.0,57253.0,0.22419655]
[1617505291725,0.10725655,57254.0,57253.0,3.88589655]
[1617505293729,0.10725655,57254.0,57253.0,0.22419655]
[1617505294129,3.24315655,57254.0,57253.0,0.22419655]
[1617505295932,3.24315655,57254.0,57253.0,0.10725655]
[1617505297942,3.24315655,57254.0,57253.0,1.10725655]
[1617505298139,3.24315655,57254.0,57253.0,1.24820655]
[1617505299239,0.36422618,57266.0,57253.0,4.49430655]
[1617505299439,0.36422618,57266.0,57265.0,0.10725655]
[1617505299640,0.36430808,57267.0,57265.0,1.23057655]
[1617505300141,0.44524296,57272.0,57265.0,1.23057655]
[1617505300142,0.36459941,57272.0,57270.0,1.0]
[1617505300341,0.36459941,57272.0,57266.0,1.0]
[1617505300545,0.36491719,57276.0,57266.0,2.5]
[1617505300742,0.36491719,57276.0,57271.0,1.0]
[1617505300941,0.3650032,57277.0,57275.0,1.0]
[1617505301343,0.4996,57279.0,57278.0,1.0]
[1617505301542,0.4996,57279.0,57278.0,1.16251]
[1617505301743,0.4996,57279.0,57278.0,0.16251]
[1617505301943,0.4996,57279.0,57278.0,1.16251]
[1617505305147,0.4996,57279.0,57278.0,0.16251]
[1617505306651,0.4996,57279.0,57278.0,2.66251]
[1617505306853,0.4996,57279.0,57278.0,5.81854]
[1617505315863,0.3658143,57303.0,57278.0,5.81854]
[1617505316264,0.87632563,57314.0,57278.0,5.81854]
[1617505316265,0.87632563,57314.0,57298.0,1.0]
[1617505316266,0.36580948,57305.0,57298.0,1.0]
[1617505316464,0.36580948,57305.0,57298.0,1.16158]
[1617505316664,0.4470779,57310.0,57304.0,3.732]
[1617505316665,0.365811,57306.0,57304.0,3.732]
[1617505317064,0.365811,57306.0,57304.0,4.732]
[1617505317265,0.365811,57306.0,57304.0,3.732]
[1617505317465,0.36579546,57309.0,57305.0,0.10725655]
[1617505317866,0.4698,57322.0,57305.0,1.10725655]
[1617505317867,0.36578129,57311.0,57305.0,1.10725655]
[1617505318267,0.36576048,57314.0,57305.0,0.10725655]
[1617505318968,0.36576226,57313.0,57305.0,0.10725655]
[1617505319469,0.36576226,57313.0,57312.0,0.10725655]
[1617505320069,0.36575201,57314.0,57312.0,0.10725655]
[1617505320269,0.36575201,57314.0,57312.0,0.25616655]
[1617505320470,0.06136744,57313.0,57312.0,0.25616655]
[1617505320870,0.36572701,57320.0,57312.0,0.25616655]
[1617505321071,0.36572701,57320.0,57312.0,1.25616655]
[1617505321472,0.0613646,57321.0,57319.0,0.10725655]
[1617505321875,0.83552143,57322.0,57319.0,0.10725655]
[1617505322275,0.36572915,57320.0,57319.0,0.10725655]
[1617505324785,0.91678736,57322.0,57319.0,0.10725655]
[1617505324786,0.36548824,57321.0,57319.0,0.10725655]
[1617505324989,0.36548824,57321.0,57319.0,0.25455655]
[1617505325181,0.4698,57322.0,57319.0,0.25455655]
[1617505326793,0.4698,57322.0,57320.0,1.0]
[1617505327787,0.4698,57322.0,57321.0,1.0]
[1617505328991,0.4698,57322.0,57319.0,0.25455655]
[1617505329390,0.4698,57322.0,57321.0,3.6999]
[1617505329590,0.4698,57322.0,57321.0,4.6999]
[1617505332690,0.4698,57322.0,57319.0,0.25455655]
[1617505333493,0.4698,57322.0,57321.0,1.0]
[1617505333695,0.4698,57322.0,57319.0,0.25455655]
[1617505334294,0.4698,57322.0,57320.0,1.0]
[1617505334695,0.4698,57322.0,57319.0,0.25455655]
[1617505337801,0.4698,57322.0,57321.0,1.0]
[1617505338002,0.4698,57322.0,57319.0,0.25455655]
[1617505339604,0.4698,57322.0,57321.0,1.0]
[1617505341406,0.4698,57322.0,57319.0,0.25455655]
[1617505341606,0.4698,57322.0,57319.0,0.10725655]
[1617505343609,0.4698,57322.0,57321.0,1.0]
[1617505343809,0.4698,57322.0,57321.0,1.14515]
[1617505344812,0.3632236,57344.0,57321.0,1.64515]
[1617505345011,0.3632236,57344.0,57341.0,3.6941]
[1617505345212,0.1281,57354.0,57341.0,3.81748]
[1617505345412,0.1281,57354.0,57341.0,0.12338]
[1617505345611,2.9087,57354.0,57341.0,0.12338]
[1617505345816,2.9087,57354.0,57353.0,0.10725655]
[1617505347415,2.9087,57354.0,57353.0,0.26689655]
[1617505348615,2.9087,57354.0,57353.0,0.10725655]
[1617505349115,0.10725655,57356.0,57353.0,0.10725655]
[1617505356326,2.5635,57354.0,57353.0,0.10725655]
[1617505356525,2.67716,57354.0,57353.0,0.10725655]
[1617505357128,3.67716,57354.0,57353.0,0.10725655]
[1617505357527,1.11366,57354.0,57353.0,0.10725655]
[1617505357728,0.36300687,57357.0,57353.0,3.45995655]
[1617505357927,0.36300687,57357.0,57353.0,3.58422655]
[1617505358128,0.459,57362.0,57353.0,3.58422655]
[1617505359829,0.459,57362.0,57361.0,0.10725655]
[1617505360431,0.459,57362.0,57361.0,1.10725655]
[1617505361230,0.459,57362.0,57361.0,0.10725655]
[1617505361631,0.459,57362.0,57361.0,1.10725655]
[1617505363335,0.459,57362.0,57361.0,0.10725655]
[1617505363535,0.459,57362.0,57361.0,2.60725655]
[1617505364335,0.36383407,57378.0,57361.0,2.60725655]
[1617505364536,0.36383407,57378.0,57376.0,3.6519]
[1617505364738,0.44466363,57383.0,57377.0,1.5]
[1617505364937,0.4579,57400.0,57377.0,1.5]
[1617505365137,0.4579,57400.0,57377.0,7.5]
[1617505365538,0.4579,57400.0,57399.0,1.0]
[1617505365739,0.4579,57400.0,57399.0,1.13609]
[1617505365939,0.4579,57400.0,57399.0,1.24334655]
[1617505366340,0.4579,57400.0,57399.0,0.24334655]
[1617505366740,0.4579,57400.0,57399.0,2.74334655]
[1617505367940,0.4579,57400.0,57399.0,1.74334655]
[1617505368539,0.4579,57400.0,57399.0,2.74334655]
[1617505368739,0.4579,57400.0,57399.0,1.74334655]
[1617505369141,0.4579,57400.0,57399.0,2.74334655]
[1617505369541,0.4579,57400.0,57399.0,1.74334655]
[1617505369943,0.4579,57400.0,57399.0,2.74334655]
[1617505370947,0.4579,57400.0,57399.0,1.74334655]
[1617505371146,0.4579,57400.0,57399.0,2.74334655]
[1617505372349,0.4579,57400.0,57399.0,1.74334655]
[1617505372552,0.4579,57400.0,57399.0,0.24334655]
[1617505372750,0.4579,57400.0,57399.0,0.10725655]
[1617505373951,0.4579,57400.0,57399.0,1.10725655]
[1617505374955,0.4579,57400.0,57399.0,3.29265655]
[1617505375559,0.4579,57400.0,57399.0,0.10725655]
[1617505375957,1.56515655,57400.0,57399.0,0.10725655]
[1617505377355,3.06515655,57400.0,57399.0,0.10725655]
[1617505378558,3.06515655,57400.0,57367.0,0.4839]
[1617505378758,3.26515655,57400.0,57367.0,0.4839]
[1617505379761,2.26515655,57400.0,57367.0,0.4839]
[1617505379958,1.0,57397.0,57390.0,0.10725655]
[1617505380659,1.0,57395.0,57390.0,0.10725655]
[1617505380859,1.0,57391.0,57390.0,0.10725655]
[1617505381061,1.112,57391.0,57390.0,0.10725655]
[1617505381962,1.21925655,57391.0,57390.0,0.10725655]
[1617505383463,1.41925655,57391.0,57390.0,0.10725655]
[1617505384363,1.41925655,57391.0,57367.0,0.4839]
[1617505385164,1.0,57388.0,57367.0,0.4839]
[1617505386066,0.10725655,57379.0,57378.0,0.10725655]
[1617505386267,0.22603655,57379.0,57378.0,0.10725655]
[1617505386869,3.63463655,57379.0,57378.0,0.10725655]
[1617505388070,3.63463655,57379.0,57372.0,0.10725655]
[1617505389371,1.0,57378.0,57372.0,0.10725655]
[1617505389771,1.0,57377.0,57372.0,0.10725655]
[1617505390070,0.10725655,57373.0,57372.0,0.10725655]
[1617505395884,1.10725655,57373.0,57359.0,0.35873714]
[1617505396084,1.10725655,57373.0,57360.0,0.10725655]
[1617505396085,2.5,57373.0,57360.0,0.10725655]
[1617505396682,1.0,57368.0,57360.0,0.10725655]
[1617505396882,1.0,57368.0,57367.0,3.4754]
[1617505397082,0.1281,57390.0,57372.0,1.0]
[1617505397482,0.1281,57390.0,57367.0,2.63797]
[1617505397683,0.4807,57396.0,57383.0,1.0]
[1617505397882,0.4807,57396.0,57392.0,2.7924]
[1617505398083,0.4807,57396.0,57395.0,0.10725655]
[1617505398284,0.4807,57396.0,57395.0,0.26737655]
[1617505398884,0.4807,57396.0,57395.0,1.26737655]
[1617505400484,0.4807,57396.0,57395.0,0.26737655]
[1617505400684,0.4807,57396.0,57395.0,1.26737655]
[1617505401185,0.4807,57396.0,57395.0,0.26737655]
[1617505402285,0.4807,57396.0,57395.0,1.26737655]
[1617505403187,0.4807,57396.0,57395.0,0.26737655]
[1617505403487,0.4807,57396.0,57395.0,1.26737655]
[1617505403886,0.4807,57396.0,57395.0,0.26737655]
[1617505404286,0.4807,57396.0,57395.0,1.26737655]
[1617505405288,0.4807,57396.0,57395.0,2.05924446]
[1617505406289,0.4807,57396.0,57395.0,1.05924446]
[1617505406490,0.4310655,57396.0,57395.0,1.05924446]
[1617505406889,0.4310655,57396.0,57395.0,0.62371711]
[1617505408694,0.4310655,57396.0,57395.0,0.26737655]
[1617505408893,0.4310655,57396.0,57395.0,0.10725655]
[1617505409494,0.4310655,57396.0,57395.0,0.46385157]
[1617505410997,0.4837655,57396.0,57395.0,0.46385157]
[1617505411199,0.4310655,57396.0,57395.0,0.46385157]
[1617505412603,0.4310655,57396.0,57395.0,0.10725655]
[1617505414805,0.4310655,57396.0,57395.0,2.63135655]
[1617505416907,0.4310655,57396.0,57395.0,3.92703862]
[1617505418307,0.4310655,57396.0,57395.0,4.92703862]
[1617505419509,0.4310655,57396.0,57395.0,3.92703862]
[1617505419708,0.43004418,57396.0,57395.0,3.92703862]
[1617505427415,0.43004418,57396.0,57395.0,4.92703862]
[1617505428618,0.43004418,57396.0,57395.0,3.92703862]
[1617505429018,0.43004418,57396.0,57395.0,4.92703862]
[1617505429719,0.42902287,57396.0,57395.0,4.92703862]
[1617505432020,0.58884287,57396.0,57395.0,1.40293862]
[1617505432421,0.69609942,57396.0,57395.0,1.40293862]
[1617505433226,0.69609942,57396.0,57395.0,0.96587939]
[1617505434329,0.58884287,57396.0,57395.0,3.88017939]
[1617505434727,0.58884287,57396.0,57395.0,3.9721008]
[1617505435928,0.42902287,57396.0,57395.0,3.9721008]
[1617505436530,0.42902287,57396.0,57395.0,4.9721008]
[1617505436729,0.42902287,57396.0,57395.0,5.46941994]
[1617505439835,0.42800166,57396.0,57395.0,5.46941994]
[1617505440434,0.10725655,57424.0,57395.0,4.46941994]
[1617505440634,1.0,57425.0,57395.0,4.46941994]
[1617505440635,1.0,57425.0,57402.0,5.2236]
[1617505440834,1.0,57425.0,57419.0,1.0]
[1617505441035,1.0,57425.0,57419.0,1.11824]
[1617505441234,1.0,57425.0,57419.0,0.11824]
[1617505441735,1.0,57425.0,57421.0,0.35699065]
[1617505442536,1.0,57425.0,57424.0,0.10725655]
[1617505444439,1.10725655,57425.0,57424.0,0.10725655]
[1617505445739,1.0,57425.0,57424.0,0.10725655]
[1617505450343,3.792,57425.0,57424.0,0.10725655]
[1617505454550,3.792,57425.0,57424.0,0.46487237]
[1617505454551,3.9628,57425.0,57424.0,0.46487237]
[1617505454952,3.9628,57425.0,57424.0,0.10725655]
[1617505456952,1.1708,57425.0,57424.0,0.10725655]
[1617505457754,1.0,57425.0,57424.0,0.10725655]
[1617505458452,1.0,57425.0,57424.0,0.46529861]
[1617505459053,1.0,57425.0,57424.0,0.10725655]
[1617505460454,1.0,57425.0,57424.0,0.465232]
[1617505463960,1.0,57425.0,57424.0,0.10725655]
[1617505464360,1.0,57425.0,57423.0,0.35770964]
[1617505464960,2.5,57424.0,57421.0,0.35807962]
[1617505465160,0.2,57423.0,57421.0,0.35807962]
[1617505465361,2.5,57422.0,57418.0,0.35852099]
[1617505465561,0.2,57421.0,57418.0,0.35852099]
[1617505465760,1.5,57420.0,57415.0,0.35865055]
[1617505465960,0.2,57419.0,57415.0,0.35865055]
[1617505466662,0.10725655,57416.0,57415.0,0.35865055]
[1617505466863,0.30725655,57416.0,57415.0,0.35865055]
[1617505467164,0.30725655,57416.0,57414.0,0.35853016]
[1617505469367,0.30725655,57416.0,57410.0,0.43826871]
[1617505469368,0.30725655,57416.0,57415.0,0.35851143]
[1617505469770,0.30725655,57416.0,57415.0,0.4197818]
[1617505469969,0.10725655,57416.0,57415.0,0.4197818]
[1617505470170,0.10725655,57416.0,57415.0,0.35851143]
[1617505470570,0.30725655,57416.0,57415.0,0.35851143]
[1617505471372,1.30725655,57416.0,57413.0,0.35874353]
[1617505473175,0.30725655,57416.0,57413.0,0.35874353]
[1617505473375,1.30725655,57416.0,57413.0,0.35874353]
[1617505473574,0.30725655,57416.0,57414.0,0.3587497]
[1617505473974,0.30725655,57416.0,57415.0,0.35868847]
[1617505474276,0.30725655,57416.0,57415.0,0.41995993]
[1617505474776,4.82665655,57416.0,57415.0,0.35868847]
[1617505474976,5.82665655,57416.0,57415.0,0.35868847]
[1617505475176,5.82665655,57416.0,57396.0,0.55795984]
[1617505475177,6.27459505,57416.0,57407.0,0.35917425]
[1617505475376,1.5,57415.0,57408.0,2.9168]
[1617505475578,1.44796003,57410.0,57408.0,2.9168]
[1617505475777,2.7,57409.0,57408.0,2.9168]
[1617505476178,3.14796327,57409.0,57408.0,2.9168]
[1617505476578,3.14796327,57409.0,57398.0,0.35892864]
[1617505476579,2.7,57409.0,57398.0,0.35892864]
[1617505476778,0.10725655,57399.0,57398.0,0.35892864]
[1617505476978,0.30725655,57399.0,57398.0,0.35892864]
[1617505477177,2.80725655,57399.0,57398.0,0.35892864]
[1617505477377,2.80725655,57399.0,57397.0,0.35905408]
[1617505477881,2.80725655,57399.0,57396.0,0.35914909]
[1617505479079,2.80725655,57399.0,57395.0,0.35925561]
[1617505479480,2.80725655,57399.0,57393.0,0.35940671]
[1617505479684,1.0,57396.0,57393.0,0.35940671]
[1617505480088,0.2,57397.0,57393.0,0.35940671]
[1617505480295,1.7,57397.0,57395.0,0.35923807]
[1617505480689,1.7,57397.0,57391.0,0.35933733]
[1617505481088,3.582,57392.0,57390.0,0.35938405]
[1617505481288,4.582,57392.0,57390.0,0.35938405]
[1617505481493,4.582,57392.0,57389.0,0.35943474]
[1617505481684,6.082,57392.0,57389.0,0.35943474]
[1617505481886,1.0,57390.0,57388.0,0.35953886]
[1617505482383,1.0,57390.0,57389.0,0.35949783]
[1617505482783,1.10725655,57390.0,57388.0,0.35950676]
[1617505483386,0.10725655,57390.0,57388.0,0.35950676]
[1617505483586,0.10725655,57390.0,57389.0,0.06128809]
[1617505483785,0.10725655,57390.0,57389.0,0.35944436]
[1617505484284,0.10725655,57390.0,57389.0,0.06128791]
[1617505484685,0.10725655,57390.0,57389.0,0.41922353]
[1617505485185,0.10725655,57390.0,57389.0,0.35793562]
[1617505485584,1.10725655,57390.0,57388.0,0.35769315]
[1617505486486,1.10725655,57390.0,57387.0,0.35756873]
[1617505486885,0.10725655,57390.0,57389.0,0.06128888]
[1617505487285,1.10725655,57390.0,57388.0,0.35748471]
[1617505487687,1.10725655,57390.0,57383.0,0.35683184]
[1617505488087,1.0,57388.0,57383.0,0.35683184]
[1617505488287,1.0,57386.0,57383.0,0.35683184]
[1617505488688,0.10725655,57384.0,57383.0,0.35683184]
[1617505488886,0.10725655,57384.0,57382.0,0.35682246]
[1617505489288,0.10725655,57384.0,57383.0,0.0612886]
[1617505489487,1.10725655,57384.0,57383.0,0.0612886]
[1617505489687,1.10725655,57384.0,57382.0,0.35682246]
[1617505490087,1.10725655,57384.0,57376.0,0.15322139]
[1617505490088,1.10725655,57384.0,57381.0,0.35643651]
[1617505490487,1.10725655,57384.0,57376.0,0.15322139]
[1617505490488,1.10725655,57384.0,57380.0,0.35657368]
[1617505491087,1.10725655,57384.0,57382.0,0.06129152]
[1617505491488,1.10725655,57384.0,57380.0,0.35657368]
[1617505491689,0.10725655,57384.0,57380.0,0.35657368]
[1617505491890,0.10725655,57384.0,57379.0,0.35631861]
[1617505495093,0.10725655,57384.0,57378.0,0.35641988]
[1617505495594,0.10725655,57384.0,57380.0,0.06129199]
[1617505495996,0.10725655,57384.0,57379.0,0.35647038]
[1617505497897,0.2,57383.0,57379.0,0.35647038]
[1617505498098,0.10725655,57384.0,57379.0,0.35647038]
[1617505498501,0.10725655,57384.0,57377.0,0.35620215]
[1617505498801,0.10725655,57378.0,57377.0,0.35620215]
[1617505501406,1.10725655,57378.0,57377.0,0.35620215]
[1617505501609,1.23526655,57378.0,57377.0,0.35620215]
[1617505502008,1.23526655,57378.0,57374.0,0.35655321]
[1617505502410,1.23526655,57378.0,57373.0,0.35661336]
[1617505502609,1.0,57375.0,57373.0,0.35661336]
[1617505502809,0.23526655,57378.0,57373.0,0.35661336]
[1617505502810,1.0,57374.0,57373.0,0.35661336]
[1617505503209,1.0,57374.0,57371.0,0.35698323]
[1617505503210,6.1317,57374.0,57371.0,0.35698323]
[1617505503610,6.1317,57374.0,57366.0,0.43631284]
[1617505503611,6.1317,57374.0,57366.0,0.35730994]
[1617505503811,1.0,57372.0,57366.0,0.35730994]
[1617505504012,1.0,57367.0,57366.0,0.35530994]
[1617505504214,2.7,57367.0,57363.0,0.35775079]
[1617505504411,1.2,57367.0,57363.0,0.35775079]
[1617505504612,0.2,57367.0,57364.0,0.06130262]
[1617505504811,0.10725655,57365.0,57364.0,0.06130262]
[1617505505012,0.27699655,57365.0,57364.0,0.06130262]
[1617505505213,0.27699655,57365.0,57356.0,0.43758068]
[1617505505812,1.0,57364.0,57356.0,0.43758068]
[1617505506213,2.5,57363.0,57356.0,0.43758068]
[1617505506413,1.0,57357.0,57356.0,0.43758068]
[1617505506615,1.0,57357.0,57354.0,0.43786103]
[1617505506817,0.10725655,57355.0,57354.0,0.43786103]
[1617505508017,0.10725655,57355.0,57352.0,0.43809409]
[1617505508617,0.10725655,57355.0,57354.0,0.49939371]
[1617505509018,0.10725655,57355.0,57352.0,0.43838366]
[1617505509218,2.60725655,57355.0,57352.0,0.43838366]
[1617505509619,2.7503,57354.0,57349.0,0.4385398]
[1617505509819,3.7503,57354.0,57349.0,0.4385398]
[1617505510020,3.7503,57354.0,57353.0,0.06131085]
[1617505510420,3.7503,57354.0,57348.0,0.43862845]
[1617505511020,0.10725655,57349.0,57348.0,0.43862845]
[1617505511223,0.24712655,57349.0,57348.0,0.43862845]
[1617505513527,0.10725655,57349.0,57348.0,0.43862845]
[1617505514128,0.10725655,57349.0,57348.0,3.99092845]
[1617505514730,0.10725655,57349.0,57348.0,4.14420997]
[1617505515135,0.27290655,57349.0,57348.0,4.14420997]
[1617505515733,1.27290655,57349.0,57348.0,4.14420997]
[1617505516434,0.27290655,57349.0,57348.0,4.14420997]
[1617505516835,0.27290655,57349.0,57348.0,3.61361261]
[1617505517234,0.27290655,57349.0,57348.0,4.05388903]
[1617505517434,0.10725655,57349.0,57348.0,4.05388903]
[1617505519837,0.10725655,57349.0,57348.0,3.61361261]
[1617505520841,0.10725655,57349.0,57348.0,4.05418996]
[1617505522042,0.10623473,57349.0,57348.0,4.05418996]
[1617505522441,4.288,57368.0,57348.0,4.55486388]
[1617505523042,0.10725655,57349.0,57348.0,4.55486388]
[1617505523242,3.288,57368.0,57348.0,3.5523]
[1617505523643,3.288,57368.0,57348.0,4.49373536]
[1617505524042,3.288,57368.0,57355.0,0.44063074]
[1617505524442,4.288,57368.0,57355.0,0.44063074]
[1617505524643,1.0,57366.0,57355.0,0.44063074]
[1617505524847,1.13663,57366.0,57353.0,0.44069464]
[1617505525044,0.10725655,57354.0,57353.0,0.44069464]
[1617505525245,0.10725655,57354.0,57350.0,0.50223558]
[1617505525645,0.10725655,57354.0,57353.0,0.50331447]
[1617505525945,0.10725655,57354.0,57353.0,0.4420023]
[1617505526347,4.22465655,57354.0,57353.0,0.4420023]
[1617505526746,4.22465655,57354.0,57331.0,0.70321837]
[1617505526747,4.22465655,57354.0,57350.0,0.44233633]
[1617505526946,4.36309655,57354.0,57350.0,0.44233633]
[1617505527851,1.24569655,57354.0,57350.0,0.44233633]
[1617505528448,1.0,57351.0,57348.0,0.44217282]
[1617505529248,1.0,57351.0,57350.0,0.3616427]
[1617505531754,2.5,57351.0,57350.0,0.3616427]
[1617505532353,5.773,57351.0,57350.0,0.3616427]
[1617505533056,5.773,57351.0,57349.0,0.36168487]
[1617505533456,5.773,57351.0,57343.0,0.44227775]
[1617505534457,5.773,57351.0,57337.0,0.50258835]
[1617505534458,1.0,57344.0,57342.0,0.44230012]
[1617505535058,0.10725655,57343.0,57342.0,0.44230012]
[1617505536060,0.10725655,57343.0,57341.0,0.44239408]
[1617505536360,0.10725655,57343.0,57342.0,0.44298701]
[1617505536361,1.10725655,57343.0,57342.0,0.44298701]
[1617505536760,1.10725655,57343.0,57342.0,0.50430977]
[1617505537160,1.10725655,57343.0,57342.0,0.44298701]
[1617505538162,1.10725655,57343.0,57329.0,0.56380165]
[1617505538462,1.10725655,57343.0,57342.0,0.44334445]
[1617505540265,1.10725655,57343.0,57340.0,0.06132219]
[1617505540567,1.10725655,57343.0,57342.0,0.50408633]
[1617505540965,1.10725655,57343.0,57342.0,0.4427643]
[1617505545872,0.10725655,57343.0,57342.0,0.4427643]
[1617505546072,0.10725655,57343.0,57342.0,0.5521943]
[1617505546672,0.10725655,57343.0,57342.0,3.0795943]
[1617505546883,0.10725655,57343.0,57342.0,3.64373889]
[1617505547282,0.10725655,57343.0,57342.0,3.84297685]
[1617505548277,0.10623456,57343.0,57342.0,3.84297685]
[1617505549774,0.10623456,57343.0,57342.0,1.31557685]
[1617505550775,0.10623456,57343.0,57342.0,1.22359544]
[1617505555385,0.10623456,57343.0,57342.0,1.11633889]
[1617505555786,0.10623456,57343.0,57342.0,1.05501472]
[1617505556186,2.82184456,57343.0,57342.0,0.94558472]
[1617505556587,3.82184456,57343.0,57342.0,0.94558472]
[1617505556986,3.82184456,57343.0,57342.0,0.4427643]
[1617505558288,3.82184456,57343.0,57342.0,0.94666472]
[1617505560188,5.32184456,57343.0,57342.0,0.94666472]
[1617505562292,4.32184456,57343.0,57342.0,0.94666472]
[1617505562492,5.32184456,57343.0,57342.0,0.94666472]
[1617505572503,4.32184456,57343.0,57342.0,0.94666472]
[1617505572703,5.32184456,57343.0,57342.0,0.94666472]
[1617505581021,3.82184456,57343.0,57342.0,0.94666472]
[1617505582921,2.82184456,57343.0,57342.0,0.94666472]
[1617505583321,3.82184456,57343.0,57342.0,0.94666472]
[1617505583521,5.32184456,57343.0,57342.0,0.94666472]
[1617505583723,4.32184456,57343.0,57342.0,0.94666472]
[1617505583923,5.52184456,57343.0,57342.0,0.94666472]
[1617505584123,5.52184456,57343.0,57332.0,0.50550071]
[1617505584124,5.97077992,57343.0,57332.0,0.50550071]
[1617505584322,8.36257992,57343.0,57332.0,0.42030071]
[1617505584524,2.5156,57333.0,57332.0,0.42030071]
[1617505584722,2.5156,57333.0,57307.0,0.09200831]
[1617505584723,5.0156,57333.0,57314.0,0.56898813]
[1617505585123,0.36806851,57332.0,57310.0,0.56941196]
[1617505585323,1.5,57331.0,57310.0,0.56941196]
[1617505585524,0.10725655,57311.0,57310.0,0.56941196]
[1617505585724,0.10725655,57311.0,57301.0,0.10725655]
[1617505585725,0.21312655,57311.0,57307.0,0.56978083]
[1617505586125,3.1127,57308.0,57305.0,0.56985422]
[1617505586526,3.1127,57308.0,57306.0,0.56984136]
[1617505586926,3.1127,57308.0,57307.0,0.56983141]
[1617505589326,3.1127,57308.0,57306.0,0.57005224]
[1617505590127,3.1127,57308.0,57305.0,0.57012722]
[1617505590327,0.10725655,57311.0,57305.0,0.57012722]
[1617505590528,0.10725655,57311.0,57305.0,0.12528]
[1617505590728,0.10725655,57311.0,57305.0,3.44928]
[1617505590929,0.10725655,57311.0,57307.0,0.56987983]
[1617505591228,0.10725655,57311.0,57305.0,3.44928]
[1617505591528,0.10725655,57311.0,57310.0,0.10725655]
[1617505595631,0.10725655,57311.0,57305.0,3.44928]
[1617505596833,1.0,57310.0,57305.0,3.44928]
[1617505597633,1.0,57308.0,57305.0,3.44928]
[1617505598032,0.10725655,57311.0,57305.0,3.44928]
[1617505598033,1.0,57309.0,57305.0,3.44928]
[1617505598232,0.10725655,57311.0,57305.0,3.44928]
[1617505599832,0.10725655,57311.0,57305.0,0.12528]
[1617505600031,2.9543,57302.0,57299.0,0.56734543]
[1617505600633,2.9543,57302.0,57298.0,0.56746035]
[1617505601033,2.95327743,57302.0,57297.0,0.56755351]
[1617505601432,2.95327743,57302.0,57296.0,0.56756771]
[1617505601632,0.10725655,57297.0,57296.0,0.56756771]
[1617505602234,0.10725655,57297.0,57295.0,0.10725655]
[1617505603533,0.10725655,57297.0,57291.0,0.56722666]
[1617505603534,3.1133,57292.0,57290.0,0.567171]
[1617505603732,0.10725655,57291.0,57290.0,0.567171]
[1617505604334,0.10725655,57291.0,57288.0,0.67471729]
[1617505606337,0.10725655,57291.0,57290.0,0.56736333]
[1617505606739,0.10725655,57291.0,57289.0,0.56745243]
[1617505607140,0.10725655,57291.0,57290.0,0.56737273]
[1617505607943,0.10725655,57291.0,57289.0,0.56742797]
[1617505608744,0.10725655,57291.0,57288.0,0.10725655]
[1617505609242,0.10725655,57291.0,57288.0,0.67481684]
[1617505609641,0.10725655,57291.0,57290.0,0.56737487]
[1617505611152,1.0,57318.0,57290.0,4.09017487]
[1617505611351,1.0,57318.0,57291.0,1.5]
[1617505611561,4.1396,57320.0,57291.0,1.5]
[1617505611562,0.4617,57320.0,57291.0,1.5]
[1617505611747,0.4617,57320.0,57318.0,0.10725655]
[1617505611949,0.4617,57320.0,57318.0,0.26694655]
[1617505612957,0.4617,57320.0,57318.0,0.15969]
[1617505613546,0.4617,57320.0,57313.0,2.5223]
[1617505613747,0.10725655,57314.0,57313.0,2.5223]
[1617505614351,0.10725655,57314.0,57306.0,0.14214]
[1617505615349,0.10725655,57314.0,57303.0,0.10725655]
[1617505615350,3.7497,57309.0,57303.0,0.10725655]
[1617505615753,0.10725655,57305.0,57303.0,0.10725655]
[1617505616149,0.10623404,57305.0,57303.0,0.10725655]
[1617505620453,0.4617,57320.0,57304.0,1.5]
[1617505620653,0.4617,57320.0,57304.0,6.36579]
[1617505620856,0.4617,57320.0,57319.0,1.0]
[1617505621054,0.4617,57320.0,57319.0,1.12183]
[1617505621654,0.4617,57320.0,57319.0,2.62183]